bitfinex/quotes_SOLUSD_20240718
["timestamp","ask_amount","ask_price","bid_price","bid_amount"]
[1721325821923,20.0,156.26,156.19,6.4023]
[1721325822129,6.4012,156.22,156.18,16.0065]
[1721325822319,20.0,156.26,156.18,16.0065]
[1721325822533,6.4013,156.22,156.18,16.0065]
[1721325822721,61.0005,156.25,156.16,6.4036]
[1721325822929,6.4016,156.21,156.16,6.4036]
[1721325823128,6.4016,156.21,156.15,22.0894]
[1721325823129,6.4016,156.21,156.17,6.4032]
[1721325824019,6.4021,156.2,156.16,6.4035]
[1721325824229,6.4021,156.2,156.15,22.4136]
[1721325824432,6.4025,156.19,156.15,22.4136]
[1721325825527,6.4021,156.2,156.16,6.4035]
[1721325826441,6.4035,156.17,156.13,6.4048]
[1721325826947,20.0,156.16,156.12,22.4178]
[1721325827139,20.0,156.16,156.13,6.4048]
[1721325828021,20.0,156.16,156.12,16.0126]
[1721325828022,26.4038,156.16,156.12,22.4178]
[1721325828849,26.4038,156.16,156.12,16.0126]
[1721325829222,6.4042,156.15,156.12,16.0126]
[1721325829428,20.0,156.16,156.12,6.4052]
[1721325829925,20.0,156.16,156.09,32.0307]
[1721325829926,26.4036,156.16,156.11,22.4196]
[1721325830247,31.87582696,156.2,156.12,6.4052]
[1721325830421,6.4039,156.16,156.11,22.4196]
[1721325830735,20.0,156.15,156.09,6.4065]
[1721325831126,20.0,156.15,156.08,22.4238]
[1721325831526,20.0,156.16,156.08,22.4238]
[1721325831727,6.4053,156.12,156.08,22.4238]
[1721325833943,6.4049,156.13,156.08,22.4238]
[1721325834151,20.0,156.12,156.08,22.4238]
[1721325834653,20.0,156.12,156.08,16.0169]
[1721325834841,6.4054,156.12,156.08,16.0169]
[1721325835835,6.4057,156.11,156.05,22.4278]
[1721325836141,26.4057,156.11,156.05,22.4278]
[1721325836528,26.4057,156.11,156.06,6.4077]
[1721325839166,26.4057,156.11,156.07,6.4073]
[1721325839543,26.4057,156.11,156.06,6.4076]
[1721325840050,26.4057,156.11,156.07,6.4073]
[1721325840262,20.0,156.11,156.08,6.4069]
[1721325840432,6.405,156.13,156.09,6.4064]
[1721325840636,6.405,156.13,156.03,15.9144]
[1721325840637,16.0557,156.18,156.1,16.8291795]
[1721325840947,6.404,156.16,156.11,6.4056]
[1721325841132,6.404,156.16,156.1,16.8291795]
[1721325841542,6.404,156.16,156.11,6.4053]
[1721325842057,6.4041,156.15,156.11,6.4053]
[1721325842358,20.0,156.14,156.11,6.4053]
[1721325842558,20.0,156.15,156.12,6.4051]
[1721325842774,6.4033,156.17,156.13,6.4048]
[1721325843256,16.0557,156.18,156.1,16.8291795]
[1721325843472,6.4043,156.15,156.1,23.2349795]
[1721325843838,6.4043,156.15,156.11,6.4055]
[1721325844859,6.4037,156.16,156.11,6.4055]
[1721325845043,6.4041,156.15,156.11,6.4055]
[1721325846555,6.4038,156.16,156.11,6.4055]
[1721325847455,6.4038,156.16,156.12,6.4052]
[1721325847644,6.4034,156.17,156.12,16.0128]
[1721325847852,26.4036,156.16,156.12,16.0128]
[1721325848151,20.0,156.16,156.13,6.4047]
[1721325848351,20.0,156.16,156.14,6.4044]
[1721325848557,20.0,156.19,156.14,6.4044]
[1721325848756,6.4022,156.2,156.15,6.4037]
[1721325849055,6.4025,156.19,156.15,6.4037]
[1721325849449,6.4021,156.2,156.15,6.4038]
[1721325849861,6.4024,156.19,156.14,16.0104]
[1721325850158,26.4029,156.18,156.14,16.0104]
[1721325850952,26.4029,156.18,156.14,22.4148]
[1721325851642,6.4032,156.17,156.14,16.0104]
[1721325852044,6.4041,156.15,156.11,22.4194]
[1721325852243,20.0,156.14,156.1,0.8138795]
[1721325852455,6.4049,156.13,156.1,0.8138795]
[1721325854648,20.0,156.14,156.1,0.8138795]
[1721325854649,6.4054,156.12,156.1,0.8138795]
[1721325854848,26.4057,156.11,156.1,0.8138795]
[1721325856170,20.0,156.11,156.1,0.8138795]
[1721325859169,26.4057,156.11,156.1,0.8138795]
[1721325861564,71.4057,156.11,156.1,0.8138795]
[1721325861955,26.4057,156.11,156.1,0.8138795]
[1721325868976,71.4057,156.11,156.1,0.8138795]
[1721325870066,26.4057,156.11,156.1,0.8138795]
[1721325871580,13.01867414,156.12,156.1,0.8138795]
[1721325871763,7.14316256,156.15,156.1,0.8138795]
[1721325872371,6.405,156.13,156.1,0.8138795]
[1721325874785,20.0,156.12,156.1,0.8138795]
[1721325875302,20.0,156.13,156.1,0.8138795]
[1721325875597,6.4046,156.14,156.1,0.8138795]
[1721325875763,20.0,156.13,156.1,2.09495584]
[1721325875965,20.0,156.13,156.1,8.50085584]
[1721325876177,14.29415263,156.18,156.11,6.4055]
[1721325876498,6.4037,156.16,156.12,7.68614994]
[1721325877098,6.4042,156.15,156.11,6.4056]
[1721325877693,6.4042,156.15,156.1,16.8287795]
[1721325877694,6.4046,156.14,156.1,16.8287795]
[1721325877900,6.4049,156.13,156.1,16.8287795]
[1721325878206,6.4042,156.15,156.11,1.28107285]
[1721325878409,6.403,156.18,156.13,6.4046]
[1721325878574,26.4034,156.17,156.12,22.4177]
[1721325878769,6.4038,156.16,156.12,22.4177]
[1721325878994,6.4038,156.16,156.12,16.0126]
[1721325879297,6.4041,156.15,156.1,7.2198795]
[1721325880186,6.4041,156.15,156.11,6.4057]
[1721325880999,6.4038,156.16,156.12,6.4051]
[1721325881681,6.4038,156.16,156.11,22.4195]
[1721325882086,26.4034,156.17,156.12,6.4049]
[1721325882292,26.4034,156.17,156.13,6.4048]
[1721325883168,20.0,156.17,156.14,6.4045]
[1721325883568,20.0,156.17,156.13,6.4047]
[1721325883778,20.0,156.17,156.14,6.4043]
[1721325883986,20.0,156.17,156.13,22.4166]
[1721325884194,26.4033,156.17,156.13,22.4166]
[1721325884598,6.4038,156.16,156.13,16.0119]
[1721325886112,6.4041,156.15,156.11,6.4056]
[1721325886294,12.62,156.15,156.11,6.4056]
[1721325886670,19.0237,156.16,156.12,6.4051]
[1721325887195,20.0,156.17,156.11,6.4056]
[1721325887196,12.62,156.14,156.11,6.4056]
[1721325887896,12.62,156.14,156.1,16.0147]
[1721325887897,12.62,156.14,156.12,6.4052]
[1721325888072,12.62,156.15,156.12,6.4052]
[1721325888387,12.62,156.15,156.13,6.4049]
[1721325888696,12.62,156.16,156.13,6.4049]
[1721325889272,12.62,156.16,156.12,22.418]
[1721325889499,12.62,156.15,156.12,22.418]
[1721325889724,19.0241,156.15,156.09,16.860542]
[1721325889988,12.62,156.14,156.09,16.860542]
[1721325890192,19.0245,156.14,156.1,6.406]
[1721325890367,12.62,156.11,156.09,0.844942]
[1721325890568,12.62,156.1,156.09,0.844942]
[1721325890769,32.62,156.1,156.09,0.844942]
[1721325891389,39.0261,156.1,156.09,0.844942]
[1721325892400,26.4061,156.1,156.09,0.844942]
[1721325894381,20.0,156.1,156.09,0.844942]
[1721325895375,26.4061,156.1,156.09,0.844942]
[1721325897998,51.6761,156.1,156.09,0.844942]
[1721325898175,67.8265,156.1,156.09,0.844942]
[1721325898375,112.8265,156.1,156.09,0.844942]
[1721325898582,122.4361,156.1,156.02,16.0229]
[1721325898894,6.4084,156.05,156.0,10.0]
[1721325899081,22.778,156.03,156.0,10.0]
[1721325899274,6.4098,156.01,156.0,10.0]
[1721325899476,26.4098,156.01,156.0,10.0]
[1721325904589,20.0,156.01,156.0,10.0]
[1721325905110,26.4098,156.01,156.0,10.0]
[1721325905696,96.6798,156.01,156.0,10.0]
[1721325906598,103.27214351,156.01,156.0,10.0]
[1721325907603,137.86334351,156.01,156.0,10.0]
[1721325907805,145.00650607,156.01,156.0,6.5496]
[1721325907998,145.00650607,156.01,155.93,0.8052703]
[1721325907999,6.4127,155.94,155.93,0.8052703]
[1721325908308,26.4127,155.94,155.93,0.8052703]
[1721325909715,20.0,155.94,155.93,0.8052703]
[1721325910305,6.4116,155.97,155.93,7.2183703]
[1721325910502,25.27,155.98,155.94,6.4125]
[1721325910503,20.0,155.96,155.94,6.4125]
[1721325911006,20.0,155.96,155.95,6.4123]
[1721325911215,6.4106,156.0,155.95,6.4121]
[1721325911396,6.4107,155.99,155.95,6.4121]
[1721325911592,20.0,155.98,155.95,6.4121]
[1721325911798,6.4094,156.03,155.98,6.4109]
[1721325912112,6.4095,156.02,155.98,6.4109]
[1721325912282,6.4091,156.03,155.99,6.4104]
[1721325912606,6.59379259,156.05,156.01,6.4097]
[1721325912810,6.4082,156.05,156.01,6.4097]
[1721325913013,7.14316256,156.06,156.02,6.4093]
[1721325913201,6.407,156.08,156.04,6.4086]
[1721325913411,6.4079,156.06,156.02,6.4094]
[1721325913903,6.4087,156.04,155.98,48.0824]
[1721325914109,6.4093,156.03,155.98,22.4378]
[1721325914311,6.4087,156.04,155.99,6.4104]
[1721325914889,31.6773,156.07,156.0,16.0247]
[1721325915094,20.0,156.06,156.02,6.409]
[1721325915292,20.0,156.06,156.0,22.4345]
[1721325915494,6.4082,156.05,156.0,22.4345]
[1721325915699,20.0,156.04,156.0,22.4345]
[1721325915896,26.4086,156.04,156.0,16.0247]
[1721325916212,26.4086,156.04,155.96,22.4403]
[1721325916213,6.4099,156.01,155.96,22.4403]
[1721325916391,6.4099,156.01,155.96,16.0287]
[1721325916790,26.4089,156.04,155.99,6.4106]
[1721325917701,10.0,156.13,155.95,22.594]
[1721325917702,6.58699665,156.1,156.0,1.28207435]
[1721325917899,6.4065,156.09,156.04,6.4082]
[1721325918202,25.27,156.12,156.03,16.0219]
[1721325918401,25.27,156.09,156.01,6.4094]
[1721325918606,6.4105,156.0,155.95,29.0061]
[1721325918816,31.7187,156.05,155.96,16.0293]
[1721325919021,6.4098,156.02,155.97,6.4112]
[1721325919506,20.0,156.01,155.97,6.4112]
[1721325919722,20.0,156.01,155.98,6.4107]
[1721325919916,6.4097,156.02,155.97,6.4113]
[1721325920227,6.4103,156.0,155.96,16.0293]
[1721325920404,6.4103,156.0,155.96,22.4411]
[1721325921211,6.4107,155.99,155.96,16.0293]
[1721325921413,6.4115,155.97,155.93,16.8374703]
[1721325921798,6.4123,155.95,155.93,0.8052703]
[1721325922715,16.556,155.98,155.93,0.8052703]
[1721325922907,26.4117,155.97,155.93,0.8052703]
[1721325923095,6.4119,155.96,155.93,0.8052703]
[1721325923295,20.0,155.95,155.93,0.8052703]
[1721325923894,26.4115,155.97,155.93,0.8052703]
[1721325925214,6.4119,155.96,155.93,0.8052703]
[1721325925513,20.0,155.95,155.93,0.8052703]
[1721325925911,20.0,155.95,155.94,6.4127]
[1721325926319,6.4109,155.99,155.94,6.4126]
[1721325926505,6.4111,155.98,155.94,6.4126]
[1721325926816,6.4107,155.99,155.94,6.4126]
[1721325927121,25.27,156.0,155.93,16.8376703]
[1721325927122,6.4103,156.0,155.93,16.8376703]
[1721325927417,16.6092,156.02,155.96,6.4118]
[1721325927615,6.4085,156.05,156.0,6.4101]
[1721325927819,6.4093,156.03,155.99,16.026]
[1721325928407,16.0209,156.05,155.96,16.0292]
[1721325928600,6.4099,156.01,155.96,22.4407]
[1721325928799,6.4098,156.01,155.97,6.4111]
[1721325929002,6.4102,156.0,155.96,16.0292]
[1721325929207,25.27,156.03,155.93,16.8374703]
[1721325929208,60.5332,156.03,155.93,16.8374703]
[1721325929517,6.4115,155.97,155.93,0.8052703]
[1721325929730,20.0,155.96,155.93,7.2180703]
[1721325929920,20.0,155.97,155.93,7.2180703]
[1721325930320,20.0,155.99,155.93,7.2180703]
[1721325930496,65.0,155.99,155.93,7.2180703]
[1721325930692,65.0,155.99,155.93,0.8052703]
[1721325930904,6.412,155.96,155.93,0.8052703]
[1721325931107,20.0,155.95,155.93,0.8052703]
[1721325931504,6.0383,156.01,155.96,6.4118]
[1721325931505,6.4101,156.01,155.96,6.4118]
[1721325931710,6.4103,156.0,155.95,6.4122]
[1721325931906,6.4107,155.99,155.94,22.4437]
[1721325932110,25.27,156.02,155.93,29.0786703]
[1721325932310,6.4122,155.96,155.93,0.8052703]
[1721325932615,6.412,155.96,155.93,0.8052703]
[1721325932803,20.0,155.95,155.93,0.8052703]
[1721325933194,26.4123,155.95,155.93,0.8052703]
[1721325934224,6.4127,155.94,155.93,0.8052703]
[1721325934712,20.0,155.94,155.93,0.8052703]
[1721325935316,26.4127,155.94,155.93,0.8052703]
[1721325935504,20.0,155.94,155.93,0.8052703]
[1721325936614,26.4127,155.94,155.93,0.8052703]
[1721325937009,20.0,155.94,155.93,0.8052703]
[1721325937346,25.27,156.01,155.93,0.8052703]
[1721325937510,6.4115,155.97,155.93,0.8052703]
[1721325937824,6.412,155.96,155.93,0.8052703]
[1721325938022,6.4115,155.97,155.93,7.2183703]
[1721325938410,6.4121,155.96,155.93,0.8052703]
[1721325938610,26.4123,155.95,155.93,0.8052703]
[1721325939831,26.4124,155.95,155.93,0.8052703]
[1721325940405,6.4127,155.94,155.93,0.8052703]
[1721325940605,26.4127,155.94,155.93,0.8052703]
[1721325940820,20.0,155.94,155.93,0.8052703]
[1721325941322,26.4127,155.94,155.93,0.8052703]
[1721325943940,71.4127,155.94,155.93,0.8052703]
[1721325944310,26.4127,155.94,155.93,0.8052703]
[1721325945444,20.0,155.94,155.93,0.8052703]
[1721325946620,20.0,155.94,155.93,7.2183703]
[1721325947023,6.57447405,155.99,155.93,0.8052703]
[1721325947239,6.4111,155.98,155.94,6.4126]
[1721325948524,20.0,155.97,155.93,23.2507703]
[1721325948728,26.4116,155.97,155.93,23.2507703]
[1721325949320,20.0,155.97,155.93,23.2507703]
[1721325949533,20.0,155.97,155.96,22.4416]
[1721325949745,20.0,155.97,155.96,16.0297]
[1721325950831,20.0,155.97,155.94,6.4126]
[1721325951033,20.0,155.97,155.95,6.4123]
[1721325951233,20.0,155.98,155.95,6.4123]
[1721325951430,6.4107,155.99,155.95,6.4123]
[1721325952228,14.25333444,156.04,155.95,6.4123]
[1721325952229,6.4102,156.01,155.96,1.282332]
[1721325952429,6.4097,156.02,155.97,6.4111]
[1721325952628,6.4099,156.01,155.97,6.4111]
[1721325953020,6.4094,156.02,155.98,7.69317964]
[1721325954016,16.0212,156.05,155.93,0.8052703]
[1721325954242,6.4102,156.0,155.96,6.4118]
[1721325954749,6.4099,156.01,155.97,6.4114]
[1721325954919,16.0212,156.05,155.97,1.28213367]
[1721325955328,20.0,156.04,155.97,1.28213367]
[1721325955921,20.0,156.04,155.97,6.4113]
[1721325956538,6.4101,156.01,155.97,6.4113]
[1721325960324,20.0,156.04,155.96,22.441]
[1721325960530,6.41,156.01,155.96,22.441]
[1721325960828,6.41,156.01,155.97,6.4114]
[1721325961440,6.4095,156.02,155.98,6.4109]
[1721325961648,20.0,156.01,156.0,6.4102]
[1721325961942,6.69979158,156.07,156.0,16.0253]
[1721325962120,41.2877,156.08,156.02,6.4093]
[1721325962121,26.408,156.06,156.02,6.4093]
[1721325962544,6.4082,156.05,156.01,6.4097]
[1721325962743,20.0,156.04,156.01,6.4097]
[1721325963043,20.0,156.04,156.0,16.0253]
[1721325963044,6.409,156.03,156.0,16.0253]
[1721325963232,26.4087,156.04,156.0,23.71737239]
[1721325963619,26.4087,156.04,156.0,22.4354]
[1721325963620,20.0,156.04,156.0,22.4354]
[1721325963827,6.4094,156.03,155.99,15.2923]
[1721325964028,20.0,156.04,155.98,6.1349]
[1721325964029,6.4095,156.02,155.98,6.1349]
[1721325964233,6.4095,156.02,155.98,12.5459]
[1721325964546,20.0,156.04,155.99,7.69251735]
[1721325964724,6.4091,156.03,155.99,7.69251735]
[1721325964926,6.4087,156.04,156.0,6.4102]
[1721325965353,6.4083,156.05,156.0,6.4102]
[1721325965557,20.0,156.04,156.01,6.4098]
[1721325965929,26.4086,156.04,156.0,6.4101]
[1721325966356,26.4086,156.04,155.99,17.30832305]
[1721325966556,20.0,156.04,155.99,22.4366]
[1721325966782,6.4088,156.04,155.99,22.4366]
[1721325967056,6.4099,156.01,155.97,6.4114]
[1721325967283,6.4095,156.02,155.97,6.4114]
[1721325967464,6.4091,156.03,155.99,6.4103]
[1721325968048,20.0,156.06,156.0,16.0253]
[1721325968353,6.4085,156.05,156.01,6.4097]
[1721325968548,20.0,156.04,156.02,6.4093]
[1721325969367,6.4075,156.07,156.03,6.409]
[1721325970556,6.4069,156.08,156.04,7.69013915]
[1721325970751,20.0,156.07,156.04,7.69013915]
[1721325970933,26.4074,156.07,156.03,6.4088]
[1721325971136,26.4074,156.07,156.03,7.69039405]
[1721325971360,6.4064,156.1,156.05,6.4079]
[1721325971541,6.4067,156.09,156.05,7.689388]
[1721325972452,6.4069,156.08,156.04,23.7104873]
[1721325972657,23.69243507,156.14,156.05,1.28148975]
[1721325972867,6.4062,156.1,156.06,6.4076]
[1721325973439,6.4057,156.11,156.07,7.68861773]
[1721325973645,6.70015453,156.16,156.08,1.28127728]
[1721325973871,6.4053,156.13,156.08,7.68787728]
[1721325974261,16.0106,156.15,156.06,16.0188]
[1721325974461,6.4064,156.1,156.06,16.0188]
[1721325974800,6.4062,156.1,156.06,16.0188]
[1721325975284,6.4062,156.1,156.06,22.4264]
[1721325975571,6.4067,156.09,156.04,7.68974652]
[1721325975750,6.4067,156.09,156.05,6.4081]
[1721325975949,16.0127,156.13,156.06,6.4076]
[1721325976254,20.0,156.12,156.05,22.4281]
[1721325976451,65.0,156.12,156.05,22.4281]
[1721325976864,6.4062,156.1,156.05,22.4281]
[1721325977762,6.4062,156.1,156.06,6.4076]
[1721325977969,6.4058,156.11,156.05,17.30139955]
[1721325978276,6.4061,156.1,156.06,6.4076]
[1721325978657,26.4056,156.12,156.07,6.4072]
[1721325979059,20.0,156.12,156.06,6.4076]
[1721325979287,20.0,156.13,156.06,6.4076]
[1721325979655,6.4064,156.1,156.06,6.4076]
[1721325980385,6.4058,156.11,156.06,6.4076]
[1721325980681,6.4058,156.11,156.07,6.4073]
[1721325980890,6.4054,156.12,156.07,6.4073]
[1721325981047,20.0,156.11,156.07,6.4073]
[1721325981477,20.0,156.11,156.08,6.4069]
[1721325981878,20.0,156.11,156.07,6.4072]
[1721325982054,6.406,156.11,156.07,6.4072]
[1721325982376,6.4065,156.09,156.05,22.4279]
[1721325982774,6.4062,156.1,156.06,6.4077]
[1721325982965,6.4062,156.1,156.03,6.1679]
[1721325982966,6.4071,156.08,156.03,12.5765]
[1721325983272,6.4078,156.06,156.02,22.4328]
[1721325984262,6.4073,156.08,156.04,6.4085]
[1721325984674,20.0,156.07,156.04,16.0208]
[1721325985075,20.0,156.07,156.06,6.4077]
[1721325985252,20.0,156.07,156.04,22.4293]
[1721325985457,20.0,156.1,156.01,16.0238]
[1721325985674,20.0,156.1,156.02,1.28171056]
[1721325985882,6.4072,156.08,156.04,6.4085]
[1721325986375,26.4074,156.07,156.03,16.0222]
[1721325986579,6.4074,156.07,156.03,16.0222]
[1721325986779,6.4071,156.08,156.03,16.0222]
[1721325986972,20.0,156.07,156.03,16.0222]
[1721325987276,26.4074,156.07,156.03,16.0222]
[1721325987890,20.0,156.07,156.05,6.4079]
[1721325988184,20.0,156.1,156.03,16.0222]
[1721325988485,20.0,156.1,156.01,6.4097]
[1721325988486,6.4082,156.05,156.01,6.4097]
[1721325988995,6.4078,156.06,156.02,6.4093]
[1721325990254,6.4075,156.07,156.03,6.409]
[1721325990655,45.0,156.09,156.02,22.4325]
[1721325990885,6.408,156.06,156.02,22.4326]
[1721325991786,6.4075,156.07,156.03,6.409]
[1721325992290,20.0,156.08,156.02,16.0233]
[1721325992489,19.93926339,156.08,156.02,16.0233]
[1721325992666,19.93926339,156.08,156.02,17.30503078]
[1721325993388,6.4079,156.06,156.02,22.4325]
[1721325993622,19.93926339,156.08,156.04,16.0208]
[1721325993783,26.34616339,156.08,156.04,22.4292]
[1721325994296,19.93926339,156.08,156.05,6.4081]
[1721325994592,6.4075,156.07,156.04,16.0208]
[1721325994773,26.34636339,156.08,156.04,16.0208]
[1721325994967,6.4074,156.07,156.03,6.4089]
[1721325995214,6.4078,156.06,156.02,6.4093]
[1721325995504,6.4074,156.07,156.03,6.4089]
[1721325995684,26.34626339,156.08,156.04,6.4085]
[1721325996195,6.4075,156.07,156.03,22.4312]
[1721325996571,6.4078,156.06,156.03,16.0222]
[1721325997478,6.4073,156.07,156.03,22.431]
[1721325997692,6.4077,156.06,156.02,6.4092]
[1721325998080,26.34626339,156.08,156.04,6.4085]
[1721325998590,6.4073,156.07,156.03,6.4088]
[1721325998792,26.34626339,156.08,156.04,6.4085]
[1721325998987,19.93926339,156.08,156.05,6.4081]
[1721325999301,19.93926339,156.08,156.04,16.0212]
[1721325999608,6.4074,156.07,156.04,16.0212]
[1721325999975,6.4074,156.07,156.03,6.4087]
[1721326000176,6.4071,156.08,156.03,6.4087]
[1721326000491,20.0,156.09,156.03,6.4087]
[1721326000685,6.4074,156.07,156.03,6.4087]
[1721326002504,6.407,156.08,156.04,6.4085]
[1721326003002,6.407,156.08,156.05,1.28149781]
[1721326003299,6.407,156.08,156.04,6.4085]
[1721326003485,6.4073,156.07,156.03,22.4311]
[1721326003879,6.4079,156.06,156.03,16.0223]
[1721326004208,6.4079,156.06,156.02,6.4093]
[1721326005388,6.4075,156.07,156.03,6.4089]
[1721326006191,6.4075,156.07,156.03,7.69046537]
[1721326006387,20.0,156.09,156.02,16.0231]
[1721326006603,6.4075,156.07,156.03,6.4087]
[1721326007814,20.0,156.09,155.99,16.0261]
[1721326007815,6.4096,156.02,155.99,16.0261]
[1721326007985,16.0209,156.05,155.96,6.1452]
[1721326008315,26.4087,156.04,155.99,6.4103]
[1721326008492,20.0,156.04,156.0,6.4099]
[1721326008691,39.1,156.11,156.0,16.0251]
[1721326008889,6.408,156.06,156.0,16.0251]
[1721326009087,20.0,156.05,156.0,16.0251]
[1721326009388,26.4082,156.05,156.0,16.0251]
[1721326009722,26.4082,156.05,156.01,6.4095]
[1721326010218,20.0,156.05,156.01,6.4095]
[1721326010508,20.0,156.05,156.02,6.4092]
[1721326010921,26.4082,156.05,156.01,6.4097]
[1721326014727,20.0,156.05,155.97,16.028]
[1721326014888,20.0,156.06,155.97,16.028]
[1721326015092,20.0,156.06,155.98,1.2819389]
[1721326015389,20.0,156.06,155.97,16.028]
[1721326015712,6.4092,156.03,155.99,6.4103]
[1721326016409,6.4087,156.04,156.0,6.4101]
[1721326017191,6.409,156.03,155.99,22.4367]
[1721326017412,6.4095,156.02,155.99,16.0262]
[1721326019510,6.4091,156.03,155.99,22.4368]
[1721326019718,20.0,156.06,155.99,16.0262]
[1721326020021,6.4085,156.05,156.01,6.4095]
[1721326020396,20.0,156.04,156.01,6.4095]
[1721326020590,26.4086,156.04,156.0,6.4101]
[1721326021608,20.0,156.04,156.01,6.4098]
[1721326023018,6.4082,156.05,156.01,22.434]
[1721326023394,6.4082,156.05,156.01,16.0243]
[1721326023696,6.4082,156.05,156.01,22.4341]
[1721326023897,6.4082,156.05,156.02,1.2816699]
[1721326024497,6.4082,156.05,156.01,22.4341]
[1721326024697,16.0191,156.07,155.97,16.028]
[1721326024905,20.0,156.06,155.98,45.0]
[1721326025099,20.0,156.06,155.99,16.0262]
[1721326025311,6.4095,156.02,155.99,16.0262]
[1721326025501,26.70334393,156.06,155.99,16.0262]
[1721326025698,6.4091,156.03,155.99,23.71849799]
[1721326025917,26.70334393,156.06,156.0,6.41]
[1721326026099,6.4086,156.04,156.0,6.41]
[1721326026300,20.0,156.06,156.01,16.0243]
[1721326026594,6.4083,156.05,156.01,22.4338]
[1721326026800,26.70260942,156.09,156.02,7.69081585]
[1721326026995,6.4075,156.07,156.03,6.4088]
[1721326027328,20.0,156.06,156.02,1.28171585]
[1721326027518,26.4079,156.06,156.02,7.69101585]
[1721326028601,12.64,156.07,156.03,6.4089]
[1721326028602,6.4074,156.07,156.03,6.4089]
[1721326028802,6.4074,156.07,156.04,1.28156672]
[1721326030395,6.7019579,156.1,156.05,20.32936643]
[1721326030598,6.7019579,156.1,156.07,19.0472]
[1721326030830,13.1081579,156.1,156.07,12.64]
[1721326031118,13.1081579,156.1,156.06,19.0477]
[1721326031619,6.407,156.08,156.05,28.6601]
[1721326031917,25.7481579,156.1,156.05,22.4281]
[1721326032105,25.7481579,156.1,156.05,35.0681]
[1721326032308,25.7481579,156.1,156.06,7.68902736]
[1721326032508,13.1081579,156.1,156.06,7.68902736]
[1721326034011,6.7019579,156.1,156.06,7.68902736]
[1721326034324,6.7019579,156.1,156.07,6.4072]
[1721326035406,13.1081579,156.1,156.06,6.4076]
[1721326035929,6.7019579,156.1,156.06,6.4076]
[1721326036114,6.7019579,156.1,156.07,6.4073]
[1721326036424,6.7019579,156.1,156.06,6.4076]
[1721326037227,6.7019579,156.1,156.07,1.28121573]
[1721326037407,6.7019579,156.1,156.08,1.28121616]
[1721326037607,6.7019579,156.1,156.06,6.4076]
[1721326038320,6.7019579,156.1,156.07,7.68826421]
[1721326038521,6.7019579,156.1,156.08,1.28117032]
[1721326039126,6.4057,156.11,156.08,1.28117032]
[1721326039306,6.4052,156.13,156.09,6.4064]
[1721326039512,6.4052,156.13,156.1,1.28103505]
[1721326040323,6.4052,156.13,156.11,1.2810352]
[1721326040524,6.4046,156.14,156.11,1.2810352]
[1721326041013,6.4041,156.15,156.11,6.4056]
[1721326041214,6.4046,156.14,156.1,6.4059]
[1721326041514,6.4042,156.15,156.11,1.28087439]
[1721326041821,6.4038,156.16,156.11,7.68647439]
[1721326042134,6.4033,156.17,156.12,1.28073012]
[1721326042327,6.403,156.18,156.13,6.4046]
[1721326042630,6.403,156.18,156.14,1.28061723]
[1721326042825,16.0058,156.2,156.15,1.28064303]
[1721326042826,6.4034,156.17,156.15,1.28064303]
[1721326043029,6.4039,156.16,156.12,6.4051]
[1721326043715,6.4041,156.15,156.11,22.4193]
[1721326043915,6.4045,156.14,156.11,16.0138]
[1721326044228,6.4045,156.14,156.1,6.406]
[1721326044430,6.4045,156.14,156.09,6.4064]